Workbook

Sheet Start
A2: Get started with formulas
A3: In just a few steps, you'll be up and running with building formulas and functions in Excel, the world's most powerful spreadsheet app.
A4: Go back to top by pressing CTRL+HOME. To start the tour, press CTRL+PAGE DOWN.

Sheet Basics
A1: Basics: doing math with Excel
A2: You can Add, Subtract, Multiply, and Divide in Excel without using any built-in functions. You just need to use some basic operators: +, -, *, /. All formulas start with an equals (=) sign. | C2: Numbers to use: | E2: Operation: | F2: Formulas: | G2: Answers:
A3: To Add, select cell F3, type =C3+C4, then press Enter. | C3: 1 | E3: Addition (+) | G3: =C3+C4 -> 3
A4: To Subtract, select cell F4, type =C3-C4, then press Enter. | C4: 2 | E4: Subtraction (-) | G4: =C3-C4 -> -1
A5: To Multiply, select cell F5, type =C3*C4, then press Enter. | E5: Multiplication (*) | G5: =C3*C4 -> 2
A6: To Divide, select cell F6, type =C3/C4, then press Enter. | E6: Division (/) | G6: =C3/C4 -> 0.5
A7: Check this out: change the numbers in cells C3 and C4, and watch the formula results automatically change. | E7: Power (^) | G7: =C3^C4 -> 1
A8: EXTRA CREDIT: You can raise a value to a power by using the carat (^) symbol, like =A1^A2. Enter it with Shift+6. In cell F7, enter =C3^C4.
A9: Dive down for more detail
A10: Next step
A11: More about formulas, cells, and ranges
A12: Excel is made up of individual cells that are grouped into rows and columns. Rows are numbered, and columns are lettered. There are over 1 million rows and 16,000 columns, and you can put formulas in any of them.
A13: Formulas can contain cell references, ranges of cell references, operators, and constants. The following are all examples of formulas: =A1+B1 =10*20 =SUM(A1:A10)
A14: You'll notice that in our third example above, we used the SUM function. A function is a pre-built command that takes a value or values, calculates them in a certain way, and returns a result. For instance, the SUM function takes the cell references or ranges you specify, and totals them. In this example it takes the cells A1 through A10, and totals them. Excel has over 400 functions, which you can explore on the Formulas tab.
A15: Formulas with functions start with an equals sign, then the function name follows with its arguments (the values a function uses to calculate) wrapped in parentheses.
A16: You confirm a formula by pressing Enter. Once you do that the formula will calculate, and the result will be displayed in the cell. To see the formula itself, you can look at the formula bar beneath the Ribbon, or press F2 to enter Edit mode, where you'll see the formula in the cell. Press Enter again to finalize the formula and calculate the result.
A17: Some formula explanations
A18: =10*20 is a formula, where 10 and 20 are constants, and the * sign is the operator.
A19: =SUM(A1:A10) is a formula, where SUM is the function name, the opening and closing parentheses contain the formula arguments, and A1:A10 is the cell range for the function.
A20: =SUM(A1:A10,C1:C10) is a formula, where SUM is the function name, the opening and closing parentheses contain the formula arguments, and A1:A10,C1:C10 are the cell ranges for the function separated by a comma.
A21: GOOD TO KNOW: Constants are values that you enter in cells or formulas. While =10+20 might calculate the same as =A1+B1, constants aren't a good practice. Why? Because you can't easily see the constant without selecting the cell and looking for it. That can make it hard to change later. It's much easier to put your constants in cells, where they can be easily adjusted, and referenced in your formulas. For example: Select the yellow cell with 12 below. You'll see we used the SUM function with a range of cells. We didn't type in "4" or "8" directly into the formula.
A22: Previous
A23: Next
A24: More information on the web
A25: Use Excel as a calculator
A26: Overview of formulas in Excel
A27: Excel functions (by category)
A28: Excel functions (alphabetical)
A29: Free Excel training online
J40: Values
J41: 4
J42: 8
J43: =SUM(J41:J42) -> 12

Sheet Introduction to Functions
A1: Introduction to functions
A2: Functions give you the ability to do a variety of things, like perform mathematical operations, look up values, or even calculate dates and times. Let's try a few ways to add up values with the SUM function. | C2: Fruit | D2: Amount | F2: Meat | G2: Amount
A3: Under the Amount column for Fruit (cell D7), enter =SUM(D3:D6), or type =SUM(, then select that range with the mouse, and press Enter. This will sum the values in cells D3, D4, D5, and D6. Your answer should be 170. | C3: Apples | D3: 50 | F3: Beef | G3: 50
A4: Now let's try AutoSum. Select the cell under the column for Meat (cell G7), then go to Formulas > AutoSum > select SUM. You'll see Excel automatically enter the formula for you. Press Enter to confirm it. The AutoSum feature has all of the most common functions. | C4: Oranges | D4: 20 | F4: Chicken | G4: 30
A5: Here's a neat keyboard shortcut. Select cell D15, then press Alt =, then Enter. This automatically enters SUM for you. | C5: Bananas | D5: 60 | F5: Pork | G5: 10
A6: Dive down for more detail | C6: Lemons | D6: 40 | F6: Fish | G6: 50
A7: EXTRA CREDIT Try the COUNT function using any of the methods you've already tried. The COUNT function counts the number of cells in a range that contain numbers. | C7: SUM > | D7: =SUM(D3:D6) -> 170 | F7: SUM >
A8: Next step
A9: More about functions | C9: Item | D9: Amount | F9: Item | G9: Amount
A10: Go to the Formulas tab and browse through the Function Library, where functions are listed by category, like Text, Date & Time, etc. Insert Function will let you search for functions by name, and launch a function wizard that can help you build your formula. When you start typing a function name after you press =, Excel will launch Intellisense, which will list all of the functions starting with the letters you type. When you find the one you want, press Tab, and Excel will automatically finish the function name and enter the opening parenthesis for you. It will also display the optional and required arguments. Now let's look at the anatomy of a few functions. The SUM function is structured like this: | C10: Bread | D10: 50 | F10: Bread | G10: 50
A11: If the SUM function could talk, it would say, return the sum of all the values in cells D38 to D41, and all of column H. SUM is the function name, D38:D41 is the first range argument, which is almost always required, and H:H is the second range argument, separated by a comma. Now, let's try one that doesn't require any arguments. | C11: Donuts | D11: 100 | F11: Donuts | G11: 100
A12: The TODAY function returns today's date. It will automatically update when Excel recalculates. | C12: Cookies | D12: 40 | F12: Cookies | G12: 40
A13: CHECK THIS OUT Select these cells. Then in the lower-right corner of the Excel window, look for SUM: 170 in the bottom bar. That's called the Status Bar, and it's just another way to quickly find a total and other details about a selected cell or range. | C13: Cakes | D13: 50 | F13: Cakes | G13: 50
A14: IMPORTANT DETAIL Double-click this cell. You'll notice the 100 toward the end. Although it's possible to put numbers in a formula like this, we don't recommend it unless it's absolutely necessary. This is known as a constant, and it's easy to forget that it's there. We recommend referring to another cell instead, like cell F51. That way it's easily seen and not hidden inside a formula. | C14: Pies | D14: 20 | F14: Pies | G14: 20
A15: More information on the web | C15: SUM > | F15: COUNT >
A16: All about the SUM function
A17: Use AutoSum to sum numbers
A18: All about the COUNT function
A19: Free Excel training online
A20: Back to top
A21: Next step
C34: Fruit | D34: Amount
C35: Apples | D35: 50
C36: Oranges | D36: 20
C37: Bananas | D37: 60
C38: Lemons | D38: 40
C39: SUM > | D39: =SUM(D35:D38) -> 170
C44: Item | D44: Amount
C45: Cars | D45: 20
C46: Trucks | D46: 10
C47: Bikes | D47: 10
C48: Skates | D48: 40
D50: Total: | F50: Additional Value | G50: New Total
D51: =SUM(D45:D48,100) -> 180 | F51: 100 | G51: =SUM(D45:D48,F51) -> 180
A87: Free Excel training online
A88: Go back to top by pressing CTRL+HOME. To proceed to the next step, press CTRL+PAGE DOWN.

Sheet AVERAGE
A1: AVERAGE function
A2: Use the AVERAGE function to get the average of numbers in a range of cells. | C2: Fruit | D2: Amount | F2: Meat | G2: Amount
A3: Select cell D7, then use AutoSum to add an AVERAGE function. | C3: Apples | D3: 50 | F3: Beef | G3: 50
A4: Now select cell G7, and enter an AVERAGE function by typing =AVERAGE(G3:G6). | C4: Oranges | D4: 20 | F4: Chicken | G4: 30
A5: In cell D15, you can use either AutoSum, or type to enter another AVERAGE function. | C5: Bananas | D5: 60 | F5: Pork | G5: 10
A6: CHECK THIS OUT Select any range of numbers, then look in the Status Bar for an instant Average. | C6: Lemons | D6: 40 | F6: Fish | G6: 50
A7: Activate the previous sheet | C7: AVERAGE > | F7: AVERAGE >
A8: Go to the next sheet
A9: EXTRA CREDIT Try using MEDIAN or MODE here. MEDIAN gives you the value in the middle of the data set, while MODE gives the one that occurs the most frequently. | C9: Item | D9: Amount | F9: Item | G9: Amount
A10: Links for more information on the web | C10: Bread | D10: 50 | F10: Bread | G10: 50
A11: Select to learn all about the AVERAGE function on the web | C11: Donuts | D11: 100 | F11: Donuts | G11: 100
A12: Select to learn all about the MEDIAN function on the web | C12: Cookies | D12: 40 | F12: Cookies | G12: 40
A13: Select to learn all about the MODE function on the web | C13: Cakes | D13: 50 | F13: Cakes | G13: 50
A14: Select to learn about free Excel training on the web | C14: Pies | D14: 20 | F14: Pies | G14: 20
C15: AVERAGE >
C29: More about the SUM function
C30: In some of the above tips, we taught you how to use the SUM function. Here are more details about it.
C31: Cells C37 through D41 contain data with two columns: Fruit and Amount.
C32: The formula in cell D42: =SUM(D38:D41).
C33: If the SUM function in cell D42 could talk, it would say this: Sum up the values in cells D38, D39, D40, and D41.
C34: Here's another way it can be used:
C35: Cells C47 through D48 contain data with two columns: Item and Amount.
C41: More information on the web
C42: All about the SUM function
C43: All about the SUMIF function
C44: Use Excel as your calculator
C45: Free Excel training online
C46: Go back to top by pressing CTRL+HOME. To proceed to the next step, press CTRL+PAGE DOWN.

Sheet MIN & MAX
A1: MIN and MAX functions
A2: Use the MIN function to get the minumum number in a range of cells. | C2: Fruit | D2: Amount | F2: Meat | G2: Amount
A3: Use the MAX function to get the maximum number in a range of cells. | C3: Apples | D3: 50 | F3: Beef | G3: 50
A4: Select cell D7, then use the AutoSum Wizard to add a MIN function. | C4: Oranges | D4: 20 | F4: Chicken | G4: 30
A5: Now select cell G7, and enter a MAX function by typing =MAX(D3:D6). | C5: Bananas | D5: 60 | F5: Pork | G5: 10
A6: In cell D15, you can use either the AutoSum Wizard, or type to enter a MIN or MAX function. | C6: Lemons | D6: 40 | F6: Fish | G6: 50
A7: More information on the web | C7: MIN > | F7: MAX >
A8: All aobut the MIN function
A9: All about the MAX function | C9: Item | D9: Amount | F9: Item | G9: Amount
A10: Free Excel training online | C10: Bread | D10: 50 | F10: Bread | G10: 50
A11: GOOD TO KNOW You can use either MIN or MAX with multiple ranges, or values to show the greater or lesser of those values, like =MIN(A1:A10,B1:B10), or =MAX(A1:A10,B1), where B1 contains a threshold value, like 10, in which case the formula would never return a result less than 10. | C11: Donuts | D11: 100 | F11: Donuts | G11: 100
C12: Cookies | D12: 40 | F12: Cookies | G12: 40
C13: Cakes | D13: 50 | F13: Cakes | G13: 50
C14: Pies | D14: 20 | F14: Pies | G14: 20
C15: MIN or MAX > | G15: =MIN(G10:G14,10) -> 10
A19: You can use either MIN or MAX with multiple ranges, or values to show the greater or lesser of those values, like =MIN(A1:A10,B1:B10), or =MAX(A1:A10,10).
A21: More information on the web
A22: All about the MIN function
A23: All about the MAX function
A24: Use Excel as your calculator
A25: Free Excel training online

Sheet Date & Time
A1: Date functions
A2: Excel can give you the current date, based on your computer's regional settings. You can also add and subtract Dates.
A3: Check out the TODAY function, which gives you Today's date. These are live, or volatile functions, so when you open your workbook tomorrow, it will have tomorrow's date. Enter =TODAY() in cell D6.
A4: Subtract Dates - Enter your next birthday in MM/DD/YY format in cell D7, and watch Excel tell you how many days away it is by using =D7-D6 in cell D8.
A5: Add Dates - Let's say you want to know what date a bill is due, or when you need to return a library book. You can add days to a date to find out. In cell D10, enter a random number of days. In cell D11, we added =D6+D10 to calculate the due date from today. | C5: Date functions
A6: GOOD TO KNOW Excel keeps dates and times based on the number of days starting from January 1, 1900. Times are kept in fractional portions of a day based on minutes. So 01/01/2017 12:30 PM is actually stored as 42736.5208. If the Time or Date show up as numbers like that, then you can press Ctrl+1 > Number > select a Date or Time format. | C6: Today's date: | F6: =IF(D6=TODAY(),"You got it!","") -> 
A7: IMPORTANT DETAIL If you don't want Excel to display a negative number because you haven't entered your birthday yet, you can use an IF function like this: =IF(D7="","",D7-D6), which says, "IF D7 equals nothing, then show nothing, otherwise show D7 minus D6". | C7: Your birthday:
A8: Time functions | C8: Days until your birthday: | D8: =D7-D6 -> 0
A9: Excel can give you the current time, based on your computer's regional settings. You can also add and subtract times. For instance, you might need to keep track of how many hours an employee worked each week, and calculate their pay and overtime.
A10: In cell D28, enter =NOW(), which will give the current time, and will update each time Excel calculates. If you need to change the Time format, you can go to Ctrl+1 > Number > Time > Select the format you want. | C10: Grace period days:
A11: Add up hours between times - In cell D36 we've entered =((D35-D32)-(D34-D33))*24, which calculates someone's start and end times, then subracts the time they took for lunch. The *24 at the end of the formula converts the fractional portion of the day that Excel sees into hours. You'll need to format the cell as a Number though. To do that, go to Home > Format > Cells (Ctrl+1) > Number > Number > 2 decimals. | C11: Bill due on: | D11: =D6+D10 -> 00:00:00
A12: If this formula could talk, it would say, "Take the Time Out and subtract it from the Time In, then subtract the Lunch Out/In Times, then multiply those by 24 to convert Excel's fractional time to hours", or =((Time In - Time Out)-(Lunch In - Lunch Out))*24.
A13: Previous
A14: Next
A15: More information on the web
A16: All about the TODAY function
A17: All about the NOW function
A18: All about the DATE function
A19: Free Excel training online
C27: Time functions
C28: Current Time:
C31: Daily Hours Worked
C32: Time In: | D32: 08:00:00
C33: Lunch Out: | D33: 12:00:00
C34: Lunch In: | D34: 13:00:00
C35: Time Out: | D35: 17:00:00
C36: Total Hours: | D36: =((D35-D32)-(D34-D33))*24 -> 8
C45: Static Date & Time
C46: Date: | D46: 2017-09-27
C47: Time: | D47: 08:52:00

Sheet Joining text and numbers
A1: Joining text from different cells
A2: There are many times in Excel when you want to join text that's in different cells. This example is very common, where you have first and last names, and want to combine them as first name, last name, or full name. Fortunately, Excel lets us do that with the Ampersand (&) sign, which you can enter with Shift+7. | C2: First Name | D2: Last Name | E2: Last Name, First Name | F2: Full Name
A3: In cell E3, enter =D3&C3 to join the last and first names. | C3: Nancy | D3: Smith | E3: =D3&", "&C3 -> Smith, Nancy | F3: =C3&" "&D3 -> Nancy Smith
A4: SmithNancy doesn't look quite right though. We need to add a comma and a space. To do that we'll use quotes to create a new text string. This time, enter =D3&", "&C3. The &", "& portion lets us join a comma and space with the text in the cells. | C4: Andy | D4: North
A5: To create the full name, we'll join first and last name, but use a space without a comma. In F3, enter =C3&" "&D3. | C5: Jan | D5: Kotas
A6: Dive down for more detail | C6: Mariya | D6: Jones
A7: Next | C7: Steven | D7: Thorpe
A8: Using text and numbers together | C8: Michael | D8: Neipper
A9: Now we'll use the & to join text and numbers, not just text and text Look at cells C28:D29. See how the date and times are in separate cells? You can join them together with the & symbol like you'll see in cells C32:C33, but that doesn't look right, does it? Unfortunately, Excel doesn't know how you want to format the numbers, so it breaks them down to their basest format, which is the the Serial date in this case. We need to explicity tell Excel how to format the number portion of the formula, so it displays the way you want in the resulting text string. You can do that with the TEXT function and a format code. | C9: Robert | D9: Zare
A10: In cell C36, enter =C28&" "&TEXT(D28,"MM/DD/YYYY"). MM/DD/YYYY is the US format code for Month/Day/Year, like 09/25/2017. | C10: Yvonne | D10: McKay
A11: In cell C37, enter =C29&" "&TEXT(D29,"HH:MM AM/PM"). HH:MM AM/PM is the US format code for Hours:Minutes AM or PM, like 1:30 PM.
A12: CHECK THIS OUT Formulas, especially big ones, can sometimes be hard to read, but you can break up their parts with spaces like this: =C28 & " " & TEXT(D28,"MM/DD/YYYY")
A13: WORTH EXPLORING If you don't know what format code to use, you can use Ctrl+1 > Number to format any cell the way you want. Then select the Custom option. You can copy the format code that's displayed back to your formula.
A14: More information on the web
A15: All about the TEXT function
A16: Combine text and numbers
A17: Free Excel training online
C27: Using text & numbers
C28: Today's date: | D28: =TODAY() -> 2021-07-05
C29: Current time: | D29: =NOW() -> 44382.09946
C31: Joining text & numbers
C32: =C28&" "&D28 -> Today's date: 44382
C33: =C29&" "&D29 -> Current time: 44382.0994585648
C35: Formatting text & numbers
C36: =C28 &" "& TEXT(D28,"MM/DD/YYYY") -> Today's date: 07/05/2021
C37: =C29&" "&TEXT(D29,"HH:MM AM/PM") -> Current time: 02:23 AM

Sheet IF statements
A1: IF statements
A2: IF statements allow you to make logical comparisons between conditions. An IF statement generally says that if one condition is true do something, otherwise do something else. The formulas can return text, values, or even more calculations.
A3: In cell D9 enter =IF(C9="Apple",TRUE,FALSE). The correct answer is TRUE.
A4: Copy D9 to D10. The answer here should be FALSE, because an orange is not an apple.
A5: Try another example by looking at the formula in cell D12. We got you started with =IF(C12<100,"Less than 100","Greater than or equal to 100"). What happens if you enter a number greater than 100 in cell C12?
A6: IMPORTANT DETAIL TRUE and FALSE are unlike other words in Excel formulas in that they don't need to be in quotes, and Excel will automatically capitalize them. Numbers don't need to be in quotes either. Regular text, like Yes or No does need to be in quotes like this: =IF(C3="Apple","Yes","No")
A7: Dive down for more detail
A8: Next | C8: IF statements
A9: IF statement with another function | C9: Apple
A10: IF statements can also force additional calculations to be performed if a certain condition is met. Here we're going to evaluate a cell to see if Sales Tax should be charged, and calculate it if the condition is true. | C10: Orange
A11: In cell F33, we've entered =IF(E33="Yes",F31*SalesTax,0), where we set up SalesTax as a Named Range with a value of 0.0825. Our formula says If cell E33 equals Yes, then multiply cell F31 times SalesTax, otherwise return a 0. Try changing Yes to No in cell E33 to see the calculation change.
A12: Next we've added an IF statement to calculate shipping if it's required. In cell F35 you'll see =IF(E35="Yes",SUM(D28:D29)*1.25,0). This says "If cell E35 is Yes, then take the sum of the Quantity column in the table above, and multiply it by 1.25, otherwise return a 0". | C12: 50 | D12: =IF(C12<100,"Less than 100","Greater than or equal to 100") -> Less than 100
A13: Next, change the 1.25 in the formula in cell F35 to "Shipping". As you start typing, Excel's auto-correct, should find it for you. When it does, press Tab to enter it. This is a Named Range, and we entered it from Formulas > Define Name. Now, if you ever need to change your shipping cost, you only have to do it in one place, and you can use the Shipping name anywhere in the workbook.
A14: GOOD TO KNOW When you create a formula, Excel will automatically place colored borders around any ranges referenced in the formula, and the corresponding ranges in the formula will be the same color. You can see this if you select cell F33 and press F2 to edit the formula.
A15: EXPERT TIP Named Ranges allow you to define terms or values in a single place, and then reuse them throughout a workbook. You can see all of the named ranges in this workbook by going to Formulas > Name Manager. Click here to learn more.
A16: Previous
A17: Next
A18: More information on the web
A19: All about the IF function
A20: All about the IFS function
A21: Advanced IF statements
A22: Free Excel training online
C27: Item | D27: Quantity | E27: Cost | F27: Total
C28: Widget | D28: 2 | E28: 9.760711586 | F28: ='IF statements'!$E$28:$E$29*'IF statements'!$D$28:$D$29 -> 19.52142317
C29: Doohickey | D29: 3 | E29: 3.418920246 | F29: ='IF statements'!$E$28:$E$29*'IF statements'!$D$28:$D$29 -> 10.25676074
D31: Sub-Total | E31: =SUM('IF statements'!$E$28:$E$29) -> 13.17963183 | F31: =SUM('IF statements'!F28:F29) -> 29.77818391
D33: Sales Tax? | E33: Yes | F33: =IF(E33="Yes",F31*SalesTax,0) -> 2.456700173
D35: Shipping? | E35: Yes | F35: =IF(E35="Yes",SUM(D28:D29)*1.25,0) -> 6.25
D37: Total | F37: =SUM(F33,F31,F35) -> 38.48488408

Sheet VLOOKUP
A1: VLOOKUP
A2: VLOOKUP is one of the most widely used functions in Excel (and one of our favorites too!). VLOOKUP lets you look up a value in a column on the left, then returns information in another column to the right if it finds a match. VLOOKUP says:
A3: =VLOOKUP(A1,B:C,2,FALSE)
A4: What do you want to look for?
A5: If you find it, how many columns to the right do you want to get a value?
A6: Where do you want to look for it?
A7: Do you want an exact, or approximate match?
A8: In cell D22, enter =VLOOKUP(C22,C17:D20,2,FALSE). The correct answer for Apples is 50. VLOOKUP looked for Apples, found it, then went over one column to the right, and returned the amount.
A9: Now try for yourself in the Meat section, in cell G22. You should end up with =VLOOKUP(F22,F17:G20,2,FALSE).
A10: EXPERIMENT Try selecting different items from the drop down lists. You'll see the result cells instantly update themselves with new values.
A11: Dive down for more detail
A12: Next
A13: VLOOKUP and #N/A
A14: Invariably, you'll run into a situation where VLOOKUP can't find what you asked it to, and it returns an error (#N/A). Sometimes, it's because the lookup value simply doesn't exist, or it can because the reference cell doesn't have a value yet.
A15: If you know your lookup value exists, but want to hide the error if the lookup cell is blank, you can use an IF statement. In this case, we'll wrap our existing VLOOKUP formula like this in cell D43: =IF(C43="","",VLOOKUP(C43,C37:D41,2,FALSE)) This says if cell C43 equals nothing (""), then return nothing, otherwise return the VLOOKUP's results. Note the second closing parenthesis at the end of the formula. This closes the IF statement.
A16: If you're not sure your lookup value exists, but you still want to suppress the #N/A error, you can use an error handling function called IFERROR in cell G43: =IFERROR(VLOOKUP(F43,F37:G41,2,FALSE),""). IFERROR says if the VLOOKUP returns a valid result, then display that, otherwise, display nothing (""). We displayed nothing here (""), but you can also use numbers (0,1, 2, etc.), or text, such as "Formula isn't correct". | C16: Fruit | D16: Amount | F16: Meat | G16: Amount
A17: IMPORTANT DETAIL IFERROR is what's known as a blanket error handler, meaning it will suppress any error your formula might throw. This can cause problems if Excel is giving you a notification that your formula has a legitimate error that needs to be fixed. A rule of thumb is to not add error handlers to your formulas until you're absolutely certain they work properly. | C17: Apples | D17: 50 | F17: Beef | G17: 50
A18: Previous | C18: Oranges | D18: 20 | F18: Chicken | G18: 30
A19: Next | C19: Bananas | D19: 60 | F19: Pork | G19: 10
A20: More information on the web | C20: Lemons | D20: 40 | F20: Fish | G20: 50
A21: All about the VLOOKUP function
A22: All about the INDEX/MATCH functions | C22: Apples | F22: Pork
A23: All about the IFERROR function
A24: Use PivotTables to analyze worksheet data
A25: Free Excel training online
C35: If the SUM function in cell D42 could talk, it would say this: Sum up the values in cells D38, D39, D40, and D41.
C36: Item | D36: Amount | F36: Item | G36: Amount
C37: Bread | D37: 50 | F37: Bread | G37: 50
C38: Donuts | D38: 100 | F38: Donuts | G38: 100
C39: Cookies | D39: 40 | F39: Cookies | G39: 40
C40: Cakes | D40: 50 | F40: Cakes | G40: 50
C41: Pies | D41: 20 | F41: Pies | G41: 20
D43: =VLOOKUP(C43,C37:D41,2,FALSE) ->  | F43: Pastry | G43: =IFERROR(VLOOKUP(F43,F37:G41,2,FALSE),"") -> 

Sheet Conditional Functions
A1: Conditional functions - SUMIF
A2: Conditional functions let you sum, average, count or get the min or max of a range based on a given condition, or criteria you specify. Such as, out of all the fruits in the list, how many are apples? Or, how many oranges are the Florida type? | C2: Fruit | D2: Amount | F2: Fruit | G2: Type | H2: Amount | Z2: Fruit | AB2: Apples | AD2: Oranges | AF2: Bananas | AH2: Lemons
A3: SUMIF lets you sum in one range based on a specifc criteria you look for in another range, like how many Apples you have. Select cell D17 and type =SUMIF(C3:C14,C17,D3:D14). SUMIF is structured like this: | C3: Apples | D3: 50 | F3: Apples | G3: Fuji | H3: 50 | Z3: Apples | AB3: Fuji | AD3: Florida | AF3: Cavendish | AH3: Rough
A4: =SUMIF(C3:C14,C17,D3:D4) | C4: Oranges | D4: 20 | F4: Oranges | G4: Florida | H4: 20 | Z4: Oranges | AB4: Honeycrisp | AD4: Navel | AF4: Lady Finger | AH4: Eureka
A5: What range do you want to look at? | C5: Bananas | D5: 60 | F5: Bananas | G5: Cavendish | H5: 60 | Z5: Bananas
A6: What value (text or number) do you want to look for? | C6: Lemons | D6: 40 | F6: Lemons | G6: Rough | H6: 40 | Z6: Lemons
A7: For each match found, what range do you want to sum in? | C7: Apples | D7: 50 | F7: Apples | G7: Honeycrisp | H7: 50
A8: SUMIFS is the same as SUMIF, but it lets you use multiple criteria. So in this example, you can look for Fruit and Type, instead of just by Fruit. Select cell H17 and type =SUMIFS(H3:H14,F3:F14,F17,G3:G14,G17). SUMIFS is structured like this: | C8: Oranges | D8: 20 | F8: Oranges | G8: Navel | H8: 20
A9: =SUMIFS(H3:H14,F3:F14,F17,G3:G14,G17) | C9: Bananas | D9: 60 | F9: Bananas | G9: Lady Finger | H9: 60
A10: What range do you want to sum? | C10: Lemons | D10: 40 | F10: Lemons | G10: Eureka | H10: 40
A11: This is the first range to look in for matches | C11: Apples | D11: 50 | F11: Apples | G11: Honeycrisp | H11: 50
A12: This is the criteria for the first match | C12: Oranges | D12: 20 | F12: Oranges | G12: Navel | H12: 20
A13: This is the second range to look in for matches | C13: Bananas | D13: 60 | F13: Bananas | G13: Cavendish | H13: 60
A14: This is the criteria for the second match | C14: Lemons | D14: 40 | F14: Lemons | G14: Eureka | H14: 40
A15: EXPERT TIP Each one of the Fruit and Type cells has a drop-down list where you can select different fruits. Try it, and watch the formulas automatically update.
A16: Dive down for more detail | C16: Fruit | D16: SUMIF | F16: Fruit | G16: Type | H16: SUMIFS
A17: Next step | C17: Apples | F17: Oranges | G17: Florida
A18: Conditional functions - COUNTIF
A19: COUNTIF and COUNTIFS let you count values in a range based on a criteria you specify. They're a bit different from the other IF and IFS functions, in that they only have a criteria range, and criteria. They don't evalute one range, then look in another to summarize.
A20: Select cell D64 and type =COUNTIF(C50:C61,C64). COUNTIF is structured like this:
A21: =COUNTIF(C50:C61,C64)
A22: What range do you want to look at?
A23: What value (text or number) do you want to look for?
A24: COUNTIFS is the same as SUMIF, but it lets you use multiple criteria. So in this example, you can look for Fruit and Type, instead of just by Fruit. Select cell H64 and type =COUNTIFS(F50:F61,F64,G50:G61,G64). COUNTIFS is structured like this:
A25: =COUNTIFS(F50:F61,F64,G50:G61,G64)
A26: This is the first range to count
A27: This is the criteria for the first match
A28: This is the second range to count
A29: This is criteria for the second match
A30: Dive down for more detail
A31: Next
A32: More conditional functions
A33: You've already seen SUMIF, SUMIFS, COUNTIF, and COUNTIFS. Now you can try on your own with the other functions, such as AVERAGEIF/S, MAXIFS, MINIFS. They're all structured the same way, so once you get one formula written, you can just replace the function name with the one you want. We've written all the functions you'll need for cell E106, so you can copy/paste these, or try to type them yourself for practice. SUMIF =SUMIF(C92:C103,C106,E92:E103) SUMIFS =SUMIFS(E92:E103,C92:C103,C106,D92:D103,D106) AVERAGEIF =AVERAGEIF(C92:C103,C106,E92:E103) AVERAGEIFS =AVERAGEIFS(E92:E103,C92:C103,C106,D92:D92,D106) COUNTIF =COUNTIF(C92:C103,C106) COUNTIFS =COUNTIFS(C92:C103,C106,D92:D103,D106) MAXIFS =MAXIFS(E92:E103,C92:C103,C106,D92:D103,D106) MINIFS =MINIFS(E92:E103,C92:C103,C106,D92:D103,D106)
A34: Dive down for more detail
A35: Next
A36: SUMIF with a value argument
A37: Here's an example of the SUMIF function using greater than (>) to find all values greater than a given amount:
A38: =SUMIF(D118:D122,">=50") -> 200
A39: Sum up some values based on this criterion:
A40: ....Look through these cells...
A41: ...and if the value is greater than 50, sum it up.
A42: NOTE: If you find you are making a lot of conditional formulas, you might find that a PivotTable is a better solution. See this PivotTable article for more information.
A43: More information on the web
A44: All about the SUMIF function
A45: All about the SUMIFS function
A46: All about the COUNTIF function
A47: All about the COUNTIFS function
A48: All about the AVERAGEIF function
A49: All about the AVERAGEIFS function | C49: Fruit | D49: Amount | F49: Fruit | G49: Type | H49: Amount
A50: All about the MINIFS function | C50: Apples | D50: 50 | F50: Apples | G50: Fuji | H50: 50
A51: All about the MAXIFS function | C51: Oranges | D51: 20 | F51: Oranges | G51: Florida | H51: 20
A52: Create a drop-down list | C52: Bananas | D52: 60 | F52: Bananas | G52: Cavendish | H52: 60
A53: Free Excel training online | C53: Lemons | D53: 40 | F53: Lemons | G53: Rough | H53: 40
A54: Back to top | C54: Apples | D54: 50 | F54: Apples | G54: Honeycrisp | H54: 50
A55: Next | C55: Oranges | D55: 20 | F55: Oranges | G55: Navel | H55: 20
C56: Bananas | D56: 60 | F56: Bananas | G56: Lady Finger | H56: 60
C57: Lemons | D57: 40 | F57: Lemons | G57: Eureka | H57: 40
C58: Apples | D58: 50 | F58: Apples | G58: Honeycrisp | H58: 50
C59: Oranges | D59: 20 | F59: Oranges | G59: Navel | H59: 20
C60: Bananas | D60: 60 | F60: Bananas | G60: Cavendish | H60: 60
C61: Lemons | D61: 40 | F61: Lemons | G61: Eureka | H61: 40
C63: Fruit | D63: COUNTIF | F63: Fruit | G63: Type | H63: COUNTIFS
C64: Apples | D64: =COUNTIF(C50:C61,C64) -> 3 | F64: Oranges | G64: Florida | H64: =COUNTIFS(F50:F61,F64,G50:G61,G64) -> 1
C91: Fruit | D91: Type | E91: Amount
C92: Apples | D92: Fuji | E92: 50
C93: Oranges | D93: Florida | E93: 20
C94: Bananas | D94: Cavendish | E94: 60
C95: Lemons | D95: Rough | E95: 40
C96: Apples | D96: Honeycrisp | E96: 50
C97: Oranges | D97: Navel | E97: 20
C98: Bananas | D98: Lady Finger | E98: 60
C99: Lemons | D99: Eureka | E99: 40
C100: Apples | D100: Honeycrisp | E100: 50
C101: Oranges | D101: Navel | E101: 20
C102: Bananas | D102: Cavendish | E102: 60
C103: Lemons | D103: Eureka | E103: 40
C105: Fruit | D105: Type | E105: Try it
C106: Lemons | D106: Eureka | E106: =SUMIFS(E92:E103,C92:C103,C106,D92:D103,D106) -> 80
C117: Item | D117: Amount
C118: Bread | D118: 50
C119: Donuts | D119: 100
C120: Cookies | D120: 40
C121: Cakes | D121: 50
C122: Pies | D122: 20
D123: =SUMIF(D118:D122,">=50") -> 200

Sheet Function Wizard
A1: Let the Function Wizard guide you
A2: If you know the name of the function you want, but you're not sure how to build it, you can use the Function Wizard to help you out.
A3: Select cell D10, then go to Formulas > Insert Function > type VLOOKUP in the Search for a function box, and press GO. When you see VLOOKUP highlighted, click OK at the bottom. When you select a function in the list, Excel will display its syntax.
A4: Next, enter the function arguments in their respective text boxes. As you enter each one, Excel will evaluate it, and show you its result, with the final result at the bottom. As you enter each section, the criteria for each argument is listed at the bottom of the form. Press OK when you're done, and Excel will enter the formula for you. | C4: Fruit | D4: Amount
A5: CHECK THIS OUT You should end up with =VLOOKUP(C10,C5:D8,2,FALSE) | C5: Apples | D5: 50
A6: GOOD TO KNOW You can type cell and range references, or select them with your mouse. | C6: Oranges | D6: 20
A7: GOOD TO KNOW As you enter each argument's section, the argument's description will be displayed toward the bottom of the form, above the Formula result. | C7: Bananas | D7: 60
A8: Previous | C8: Lemons | D8: 40
A9: Next
A10: More information on the web | C10: Apples | D10: =VLOOKUP(C10,C5:D8,2,FALSE) -> 50
A11: Overview of formulas in Excel
A12: Excel functions (by category)
A13: Excel functions (alphabetical)
A14: Free Excel training online

Sheet Formula Errors
A1: Fixing formula errors
A2: At some point in time, you'll run across a formula that has an error, which Excel will display with #ErrorName. Errors can be helpful, because they point out when something's not working right, but they can be challenging to fix. Fortunately, there are several options that can help you track down the source of the error, and fix it.
A3: Error checking - Go to Formulas > Error Checking. This will load a dialog that will tell you the general cause for your specific error. In cell D9, the #N/A error is caused because there is no value matching "Apple". You can fix this by using a value that does exist, suppress the error with IFERROR, or ignore it and know it will go away when you do use a value that exists. | C3: Fruit | D3: Amount
A4: If you click Help on this Error, a help topic specific to the error message will open. If you click Show Calculation Steps, an Evaluate Formula dialog will load. | C4: Apples | D4: 50
A5: Each time you click Evaluate, Excel will step through the formula one section at a time. It won't necessarily tell you why an error occurs, but it will point out where. From there, look at the help topic to deduce what went wrong with your formula. | C5: Oranges | D5: 20
A6: EXPERIMENT What's wrong here? Hint: We're trying to SUM up all the items. | C6: Bananas | D6: 60
A7: GOOD TO KNOW Clicking Options will let you set the rules for when errors in Excel are displayed or ignored. | C7: Lemons | D7: 40
A8: Previous
A9: Next | C9: Apple | D9: =VLOOKUP(C9,C3:D7,2,FALSE) -> 
A10: More information on the web
A11: Detect errors in formulas
A12: How to avoid broken formulas
A13: Evaluate a nested formula one step at a time
A14: Free Excel training online
C30: Fruit | D30: Amount
C31: Apples | D31: 50
C32: Oranges | D32: 20
C33: Bananas | D33: 60
C34: Lemons | D34: 40
C36: Total | D36: =sume(D31:D34) -> 

Sheet Learn more
A1: More questions about Excel?
A2: Press ALT+Q and type what you want to know.
A3: Keep going. There is more to learn with Excel:
A4: LinkedIn Learning: Video courses for all levels—from beginner to advanced. Take at your own pace.
A5: Community: Ask questions and connect with other Excel fans.
A6: What else is new? Office 365 subscribers get continual updates and new features.
